fUSD/lending_fUSD_20260405
["ID","MTS","AMOUNT","RATE_DAILY","PERIOD"]
[419745750,1775352640791,-500.0,0.00013698,2]
[419745751,1775352640800,-500.0,0.00013698,2]
[419745752,1775352640810,-500.0,0.00013698,2]
[419745753,1775352640819,-500.0,0.00013698,2]
[419745754,1775352640829,-500.0,0.00013698,2]
[419745755,1775352640839,-500.0,0.00013698,2]
[419745756,1775352640848,-500.0,0.00013698,2]
[419745757,1775352640859,-500.0,0.00013698,2]
[419745758,1775352640869,-500.0,0.00013698,2]
[419745759,1775352640880,-500.0,0.00013698,2]
[419745760,1775352640889,-582.22634248,0.00013698,2]
[419745761,1775352640899,-551.33965378,0.00013698,2]
[419745762,1775352640910,-608.7,0.00013698,2]
[419745763,1775352640918,-608.7,0.00013698,2]
[419745764,1775352640927,-608.7,0.00013698,2]
[419745765,1775352640937,-608.7,0.00013698,2]
[419745766,1775352640946,-500.0,0.00013698,2]
[419745767,1775352640956,-500.0,0.00013698,2]
[419745768,1775352640966,-500.0,0.00013698,2]
[419745769,1775352640976,-500.0,0.00013698,2]
[419745770,1775352640985,-500.0,0.00013698,2]
[419745771,1775352640994,-500.0,0.00013698,2]
[419745772,1775352641004,-500.0,0.00013698,2]
[419745773,1775352641014,-331.50160891,0.00013698,2]
[419745774,1775352641023,-500.0,0.00013698,2]
[419745775,1775352641032,-500.0,0.00013698,2]
[419745776,1775352641041,-500.0,0.00013698,2]
[419745777,1775352641050,-500.0,0.00013698,2]
[419745778,1775352641060,-340.67,0.00013698,2]
[419745780,1775352641069,-500.0,0.00013698,2]
[419745781,1775352641078,-500.0,0.00013698,2]
[419745782,1775352641089,-500.0,0.00013698,2]
[419745783,1775352641098,-500.0,0.00013698,2]
[419745784,1775352641107,-500.0,0.00013698,2]
[419745785,1775352641116,-500.0,0.00013698,2]
[419745786,1775352641126,-500.0,0.00013698,2]
[419745787,1775352641135,-500.0,0.00013698,2]
[419745788,1775352641143,-500.0,0.00013698,2]
[419745789,1775352641153,-500.0,0.00013698,2]
[419745790,1775352641163,-500.0,0.00013698,2]
[419745791,1775352641172,-500.0,0.00013698,2]
[419745792,1775352641181,-500.0,0.00013698,2]
[419745793,1775352641190,-500.0,0.00013698,2]
[419745794,1775352641199,-500.0,0.00013698,2]
[419745795,1775352641209,-500.0,0.00013698,2]
[419745796,1775352641218,-500.0,0.00013698,2]
[419745797,1775352641227,-500.0,0.00013698,2]
[419745798,1775352641237,-500.0,0.00013698,2]
[419745799,1775352641247,-500.0,0.00013698,2]
[419745800,1775352641256,-561.59815036,0.00013698,2]
[419745801,1775352641265,-150.0,0.00013699,2]
[419745802,1775352641274,-150.0,0.00013699,2]
[419745803,1775352641283,-150.0,0.00013699,2]
[419745804,1775352641292,-200.0,0.00013699,2]
[419745805,1775352641302,-157.49,0.00013699,2]
[419745806,1775352641312,-5842.0,0.00013699,2]
[419745807,1775352641323,-500.0,0.00013699,2]
[419745808,1775352641332,-500.0,0.00013699,2]
[419745809,1775352641341,-500.0,0.00013699,2]
[419745810,1775352641350,-500.0,0.00013699,2]
[419745811,1775352641359,-500.0,0.00013699,2]
[419745812,1775352641368,-500.0,0.00013699,2]
[419745813,1775352641377,-500.0,0.00013699,2]
[419745814,1775352641387,-500.0,0.00013699,2]
[419745815,1775352641396,-500.0,0.00013699,2]
[419745816,1775352641407,-500.0,0.00013699,2]
[419745817,1775352641418,-518.91238386,0.00013699,2]
[419745818,1775352641429,-598.74889834,0.00013699,2]
[419745819,1775352641438,-500.0,0.00013699,2]
[419745820,1775352641448,-163.57511377,0.00013699,2]
[419745821,1775352641458,-500.0,0.00013699,2]
[419745822,1775352641468,-500.0,0.00013699,2]
[419745823,1775352641479,-500.0,0.00013699,2]
[419745824,1775352641488,-202.5903212,0.00013699,2]
[419745825,1775352641499,-500.0,0.00013699,2]
[419745826,1775352641508,-500.0,0.00013699,2]
[419745827,1775352641518,-500.0,0.00013699,2]
[419745828,1775352641527,-500.0,0.00013699,2]
[419745829,1775352641537,-201.67,0.00013699,2]
[419745830,1775352641547,-545.02986039,0.00013699,2]
[419745831,1775352641557,-150.31858386,0.000137,2]
[419745832,1775352641567,-403.83679365,0.00013711,2]
[419745833,1775352641576,-339.74216551,0.00013711,2]
[419745834,1775352641586,-2351.0,0.00013727,2]
[419745835,1775352641595,-1344.44742338,0.0001374,2]
[419745836,1775352641605,-151.0,0.00013753,2]
[419745837,1775352641614,-1345.0,0.00013754,2]
[419745838,1775352641624,-1345.0,0.00013754,2]
[419745839,1775352641633,-1345.0,0.00013754,2]
[419745840,1775352641643,-1345.0,0.00013754,2]
[419745841,1775352641653,-1345.0,0.00013754,2]
[419745842,1775352641663,-1345.0,0.00013754,2]
[419745843,1775352641672,-1345.0,0.00013754,2]
[419745844,1775352641681,-1345.0,0.00013754,2]
[419745845,1775352641691,-1345.0,0.00013754,2]
[419745846,1775352641700,-1345.0,0.00013754,2]
[419745847,1775352641710,-1345.0,0.00013754,2]
[419745848,1775352641719,-1345.0,0.00013754,2]
[419745849,1775352641729,-1345.0,0.00013754,2]
[419745850,1775352641738,-1345.0,0.00013754,2]
[419745851,1775352641747,-1345.0,0.00013754,2]
[419745852,1775352641757,-1345.0,0.00013754,2]
[419745853,1775352641767,-1345.0,0.00013754,2]
[419745854,1775352641777,-1345.0,0.00013754,2]
[419745855,1775352641786,-1345.0,0.00013754,2]
[419745856,1775352641795,-1345.0,0.00013754,2]
[419745857,1775352641807,-1345.0,0.00013754,2]
[419745858,1775352641816,-1345.0,0.00013754,2]
[419745859,1775352641826,-1345.0,0.00013754,2]
[419745860,1775352641835,-1361.0,0.00013754,2]
[419745861,1775352641844,-3039.0,0.00013756,2]
[419745862,1775352641855,-3039.0,0.00013756,2]
[419745863,1775352641865,-3039.0,0.00013756,2]
[419745864,1775352641874,-3039.0,0.00013756,2]
[419745865,1775352641884,-3039.0,0.00013756,2]
[419745866,1775352641894,-3039.0,0.00013756,2]
[419745867,1775352641904,-3039.0,0.00013756,2]
[419745868,1775352641914,-3039.0,0.00013756,2]
[419745869,1775352641924,-3039.0,0.00013756,2]
[419745870,1775352641933,-3039.0,0.00013756,2]
[419745871,1775352641942,-3039.0,0.00013756,2]
[419745872,1775352641951,-3039.0,0.00013756,2]
[419745873,1775352641961,-3039.0,0.00013756,2]
[419745874,1775352641971,-3039.0,0.00013756,2]
[419745875,1775352641982,-3039.0,0.00013756,2]
[419745876,1775352641991,-3039.0,0.00013756,2]
[419745877,1775352642001,-3039.0,0.00013756,2]
[419745878,1775352642011,-3039.0,0.00013756,2]
[419745879,1775352642021,-3039.0,0.00013756,2]
[419745880,1775352642031,-3039.0,0.00013756,2]
[419745881,1775352642040,-3039.0,0.00013756,2]
[419745882,1775352642050,-3039.0,0.00013756,2]
[419745883,1775352642060,-3039.0,0.00013756,2]
[419745884,1775352642071,-3044.0,0.00013756,2]
[419745885,1775352642080,-500.0,0.00013756,2]
[419745886,1775352642090,-500.0,0.00013756,2]
[419745887,1775352642100,-500.0,0.00013756,2]
[419745888,1775352642109,-500.0,0.00013756,2]
[419745889,1775352642119,-500.0,0.00013756,2]
[419745890,1775352642128,-500.0,0.00013756,2]
[419745891,1775352642139,-500.0,0.00013756,2]
[419745892,1775352642149,-500.0,0.00013756,2]
[419745893,1775352642158,-500.0,0.00013756,2]
[419745894,1775352642167,-500.0,0.00013756,2]
[419745895,1775352642177,-500.0,0.00013756,2]
[419745896,1775352642186,-500.0,0.00013756,2]
[419745897,1775352642196,-612.99449922,0.00013756,2]
[419745898,1775352642207,-500.0,0.00013771,2]
[419745899,1775352642216,-500.0,0.00013771,2]
[419745900,1775352642227,-500.0,0.00013771,2]
[419745901,1775352642237,-500.0,0.00013786,2]
[419745902,1775352642248,-500.0,0.00013786,2]
[419745903,1775352642257,-500.0,0.00013786,2]
[419745904,1775352642267,-500.39048904,0.00013786,2]
[419745905,1775352642277,-500.0,0.00013786,2]
[419745906,1775352642288,-500.0,0.00013786,2]
[419745907,1775352642298,-500.0,0.00013786,2]
[419745908,1775352642309,-500.0,0.00013786,2]
[419745909,1775352642319,-569.02268013,0.00013786,2]
[419745910,1775352642328,-500.0,0.00013786,2]
[419745911,1775352642337,-606.98804759,0.00013786,2]
[419745912,1775352642347,-312.69903259,0.00013786,2]
[419745913,1775352642357,-500.0,0.00013786,2]
[419745914,1775352642367,-500.0,0.00013786,2]
[419745915,1775352642376,-515.65190416,0.00013786,2]
[419745916,1775352642387,-500.0,0.00013786,2]
[419745917,1775352642397,-374.24,0.00013828,2]
[419745918,1775352642407,-500.0,0.00013836,2]
[419745919,1775352642416,-1482.54,0.00013836,2]
[419745920,1775352642426,-6971.76991075,0.00013885,2]
[419745921,1775352642437,-1563.28893586,0.00013916,2]
[419745922,1775352642447,-2000.0,0.00013916,2]
[419745923,1775352642456,-36884.43135423,0.00013941,2]
[419745924,1775352642465,-500.0,0.00013945,2]
[419745925,1775352642475,-150.0,0.00013973,2]
[419745926,1775352642484,-500.0,0.00014005,2]
[419745928,1775352642494,-9601.90631203,0.00014006,2]
[419745930,1775352642503,-3059.913406,0.00014046,2]
[419745931,1775352642513,-7322.655707,0.00014046,2]
[419745932,1775352642522,-838.968576,0.00014046,2]
[419745933,1775352642532,-433.0,0.00014066,2]
[419745934,1775352642542,-2000.0,0.00014108,2]
[419745935,1775352642552,-2000.0,0.00014108,2]
[419745936,1775352642562,-2000.0,0.00014108,2]
[419745937,1775352642572,-2000.0,0.00014108,2]
[419745938,1775352642582,-2000.0,0.00014108,2]
[419745939,1775352642591,-2000.0,0.00014108,2]
[419745940,1775352642601,-2000.0,0.00014108,2]
[419745941,1775352642610,-2000.0,0.00014108,2]
[419745942,1775352642619,-2000.0,0.00014108,2]
[419745943,1775352642629,-2000.0,0.00014108,2]
[419745944,1775352642639,-500.0,0.0001411,2]
[419745945,1775352642648,-500.0,0.0001411,2]
[419745946,1775352642656,-200.0,0.0001411,2]
[419745947,1775352642666,-1546.48273779,0.0001411,2]
[419745948,1775352642676,-1482.54,0.0001411,2]
[419745949,1775352642685,-2000.0,0.00014116,2]
[419745950,1775352642695,-500.0,0.00014118,2]
[419745951,1775352642704,-564.47,0.00014118,2]
[419745952,1775352642714,-500.0,0.00014118,2]
[419745953,1775352642723,-683.54943337,0.00014137,2]
[419745954,1775352642732,-2000.0,0.00014167,2]
[419745955,1775352642742,-2000.0,0.00014167,2]
[419745956,1775352642751,-2000.0,0.00014167,2]
[419745957,1775352642760,-2000.0,0.00014167,2]
[419745958,1775352642847,-2000.0,0.00014167,2]
[419745959,1775352642856,-2000.0,0.00014167,2]
[419745960,1775352642865,-2000.0,0.00014167,2]
[419745961,1775352642875,-2000.0,0.00014167,2]
[419745962,1775352642884,-2000.0,0.00014167,2]
[419745963,1775352642893,-2000.0,0.00014167,2]
[419745964,1775352642902,-2000.0,0.00014176,2]
[419745965,1775352642911,-2000.0,0.00014176,2]
[419745966,1775352642920,-2000.0,0.00014176,2]
[419745967,1775352642929,-2000.0,0.00014176,2]
[419745968,1775352642938,-2000.0,0.00014176,2]
[419745969,1775352642947,-2000.0,0.00014176,2]
[419745970,1775352642957,-2000.0,0.00014176,2]
[419745971,1775352642966,-2000.0,0.00014176,2]
[419745972,1775352642975,-2000.0,0.00014176,2]
[419745973,1775352642984,-2000.0,0.00014176,2]
[419745974,1775352642993,-2000.0,0.00014216,2]
[419745975,1775352643002,-28181.7965413,0.00014225,2]
[419745976,1775352643014,-209.03450292,0.00014225,2]
[419745977,1775352643023,-10000.0,0.00014232,2]
[419745978,1775352643032,-1000.0,0.00014247,2]
[419745979,1775352643042,-920.32389809,0.00014247,2]
[419745980,1775352643051,-501.76874276,0.00014247,2]
[419745981,1775352643060,-1000.0,0.00014247,2]
[419745982,1775352643070,-1000.0,0.00014247,2]
[419745983,1775352643079,-1000.0,0.00014247,2]
[419745984,1775352643088,-1000.0,0.00014247,2]
[419745985,1775352643098,-1000.0,0.00014247,2]
[419745986,1775352643107,-1000.0,0.00014247,2]
[419745987,1775352643117,-1002.59758452,0.00014247,2]
[419745988,1775352643127,-1000.0,0.00014247,2]
[419745989,1775352643136,-502.01968107,0.00014247,2]
[419745990,1775352643146,-1000.0,0.00014247,2]
[419745991,1775352643155,-1000.0,0.00014247,2]
[419745992,1775352643165,-1000.0,0.00014247,2]
[419745993,1775352643176,-1000.0,0.00014247,2]
[419745994,1775352643186,-500.33264559,0.00014247,2]
[419745995,1775352643196,-1000.0,0.00014247,2]
[419745996,1775352643205,-500.0,0.00014284,2]
[419745997,1775352643215,-608.7,0.00014284,2]
[419745998,1775352643225,-1000.0,0.00014319,2]
[419745999,1775352643235,-1000.0,0.00014319,2]
[419746000,1775352643245,-1000.0,0.00014319,2]
[419746001,1775352643254,-600.0,0.00014325,2]
[419746002,1775352643264,-500.0,0.00014332,2]
[419746003,1775352643273,-753.88,0.00014332,2]
[419746004,1775352643284,-36884.43135423,0.00014332,2]
[419746005,1775352643293,-1000.0,0.00014334,2]
[419746006,1775352643303,-1000.0,0.00014334,2]
[419746007,1775352643313,-211.98761601,0.00014334,2]
[419746008,1775352643323,-1000.0,0.00014334,2]
[419746009,1775352643333,-1000.0,0.00014334,2]
[419746010,1775352643343,-189.63267035,0.00014334,2]
[419746011,1775352643353,-1000.0,0.00014334,2]
[419746012,1775352643364,-685.54126071,0.00014334,2]
[419746013,1775352643378,-1000.0,0.00014334,2]
[419746014,1775352643388,-1000.0,0.00014334,2]
[419746015,1775352643397,-392.10429392,0.00014334,2]
[419746016,1775352643407,-5842.0,0.00014384,2]
[419746017,1775352643416,-418.97622326,0.00014384,2]
[419746018,1775352643426,-1482.54,0.00014384,2]
[419746019,1775352643436,-6971.76991075,0.00014388,2]
[419746020,1775352643445,-1406.48,0.000144,2]
[419746021,1775352643455,-150.0,0.000144,2]
[419746022,1775352643464,-150.0,0.000144,2]
[419746023,1775352643474,-150.0,0.000144,2]
[419746024,1775352643483,-150.0,0.000144,2]
[419746025,1775352643493,-150.0,0.000144,2]
[419746026,1775352643502,-150.0,0.000144,2]
[419746027,1775352643512,-150.0,0.000144,2]
[419746028,1775352643521,-150.0,0.000144,2]
[419746029,1775352643530,-150.0,0.000144,2]
[419746030,1775352643539,-150.0,0.000144,2]
[419746032,1775352643549,-150.0,0.000144,2]
[419746034,1775352643558,-150.0,0.000144,2]
[419746035,1775352643567,-150.0,0.000144,2]
[419746036,1775352643576,-150.0,0.000144,2]
[419746037,1775352643585,-150.0,0.000144,2]
[419746038,1775352643595,-250.0,0.00014403,2]
[419746039,1775352643604,-500.0,0.00014421,2]
[419746040,1775352643614,-1344.44742338,0.00014424,2]
[419746041,1775352643623,-150.0,0.00014429,2]
[419746042,1775352643633,-150.0,0.0001443,2]
[419746043,1775352643642,-150.0,0.00014442,2]
[419746044,1775352643651,-150.0,0.00014448,2]
[419746045,1775352643660,-150.0,0.00014453,2]
[419746046,1775352643670,-150.0,0.00014457,2]
[419746047,1775352643679,-150.0,0.00014459,2]
[419746048,1775352643689,-150.0,0.00014464,2]
[419746049,1775352643699,-2500.0,0.00014464,2]
[419746050,1775352643708,-150.0,0.0001448,2]
[419746051,1775352643718,-150.0,0.00014484,2]
[419746052,1775352643728,-150.0,0.00014486,2]
[419746053,1775352643741,-150.0,0.00014489,2]
[419746054,1775352643750,-150.0,0.00014497,2]
[419746055,1775352643760,-150.0,0.00014507,2]
[419746056,1775352643769,-150.0,0.00014514,2]
[419746057,1775352643779,-150.0,0.00014519,2]
[419746058,1775352643789,-150.0,0.00014526,2]
[419746059,1775352643798,-150.0,0.00014528,2]
[419746060,1775352643808,-150.0,0.00014543,2]
[419746061,1775352643818,-150.0,0.00014545,2]
[419746062,1775352643828,-150.0,0.00014545,2]
[419746063,1775352643837,-150.0,0.00014548,2]
[419746064,1775352643847,-374.24,0.00014555,2]
[419746065,1775352643856,-150.0,0.0001456,2]
[419746066,1775352643867,-150.0,0.0001456,2]
[419746067,1775352643876,-150.0,0.0001456,2]
[419746068,1775352643886,-150.0,0.00014568,2]
[419746069,1775352643896,-150.0,0.00014571,2]
[419746070,1775352643906,-150.0,0.00014578,2]
[419746071,1775352643915,-150.0,0.00014592,2]
[419746072,1775352643924,-150.0,0.00014594,2]
[419746073,1775352643934,-160.9357,0.000146,2]
[419746074,1775352643943,-150.0,0.000146,2]
[419746075,1775352643953,-150.0,0.00014607,2]
[419746076,1775352643962,-150.0,0.00014611,2]
[419746077,1775352643972,-150.0,0.00014613,2]
[419746078,1775352643982,-150.0,0.00014629,2]
[419746079,1775352643991,-150.0,0.00014637,2]
[419746080,1775352644000,-150.0,0.0001464,2]
[419746081,1775352644010,-150.0,0.00014642,2]
[419746082,1775352644019,-150.0,0.00014653,2]
[419746083,1775352644029,-150.0,0.00014656,2]
[419746084,1775352644038,-150.0,0.00014657,2]
[419746085,1775352644047,-200.0,0.00014658,2]
[419746086,1775352644056,-577.27762622,0.00014658,2]
[419746087,1775352644066,-1482.54,0.00014658,2]
[419746088,1775352644076,-1804.0322388,0.00014664,2]
[419746089,1775352644086,-150.0,0.00014667,2]
[419746090,1775352644095,-150.0,0.00014667,2]
[419746091,1775352644105,-600.0,0.00014677,2]
[419746092,1775352644114,-150.0,0.00014686,2]
[419746093,1775352644123,-150.0,0.00014691,2]
[419746094,1775352644133,-150.0,0.00014691,2]
[419746095,1775352644143,-150.0,0.00014695,2]
[419746096,1775352644154,-150.0,0.00014696,2]
[419746097,1775352644164,-160.9357,0.000147,2]
[419746098,1775352644174,-150.0,0.00014714,2]
[419746099,1775352644184,-150.0,0.0001472,2]
[419746100,1775352644194,-150.0,0.0001472,2]
[419746101,1775352644205,-150.0,0.0001472,2]
[419746103,1775352644215,-150.0,0.0001472,2]
[419746104,1775352644224,-500.0,0.00014723,2]
[419746105,1775352644234,-36884.43135423,0.00014724,2]
[419746106,1775352644244,-150.0,0.00014726,2]
[419746107,1775352644254,-150.0,0.00014737,2]
[419746108,1775352644263,-150.0,0.00014739,2]
[419746109,1775352644273,-511.0,0.00014742,3]
[419746110,1775352644283,-150.0,0.00014743,2]
[419746111,1775352644292,-160.0,0.00014749,2]
[419746113,1775352644302,-150.0,0.00014756,2]
[419746114,1775352644311,-2500.0,0.00014764,2]
[419746115,1775352644321,-150.0,0.00014771,2]
[419746116,1775352644330,-150.0,0.00014773,2]
[419746117,1775352644340,-150.0,0.00014779,2]
[419746118,1775352644350,-150.0,0.00014784,2]
[419746119,1775352644359,-1183.88711852,0.00014785,2]
[419746120,1775352644369,-150.0,0.00014785,2]
[419746121,1775352644378,-150.0,0.00014788,2]
[419746122,1775352644388,-1500.0,0.00014795,2]
[419746123,1775352644397,-1500.0,0.00014795,2]
[419746124,1775352644407,-1500.0,0.00014795,2]
[419746125,1775352644416,-1412.47132242,0.00014795,2]
[419746126,1775352644426,-1513.6791618,0.00014795,2]
[419746127,1775352644436,-1500.0,0.00014795,2]
[419746128,1775352644445,-952.51047759,0.00014795,2]
[419746129,1775352644454,-1500.0,0.00014795,2]
[419746130,1775352644464,-1500.0,0.00014795,2]
[419746131,1775352644474,-1500.0,0.00014795,2]
[419746132,1775352644483,-417.87254797,0.00014795,2]
[419746133,1775352644492,-1500.0,0.00014795,2]
[419746134,1775352644502,-1500.0,0.00014795,2]
[419746135,1775352644512,-500.0,0.00014799,2]
[419746136,1775352644522,-608.7,0.00014799,2]
[419746137,1775352644531,-160.9357,0.000148,2]
[419746138,1775352644541,-150.0,0.000148,2]
[419746139,1775352644551,-150.0,0.000148,2]
[419746140,1775352644561,-150.0,0.00014815,2]
[419746141,1775352644571,-150.0,0.00014821,2]
[419746142,1775352644580,-150.0,0.00014827,2]
[419746143,1775352644591,-150.0,0.00014829,2]
[419746144,1775352644601,-150.0,0.00014836,2]
[419746145,1775352644611,-150.0,0.00014836,2]
[419746146,1775352644621,-150.0,0.00014844,2]
[419746147,1775352644630,-150.0,0.00014848,2]
[419746148,1775352644640,-150.0,0.00014857,2]
[419746149,1775352644650,-150.0,0.00014863,2]
[419746150,1775352644661,-1500.0,0.00014867,2]
[419746151,1775352644671,-1501.43710211,0.00014867,2]
[419746152,1775352644682,-1534.13936617,0.00014867,2]
[419746154,1775352644691,-500.0,0.00014872,2]
[419746155,1775352644701,-564.47,0.00014872,2]
[419746156,1775352644710,-500.0,0.00014872,2]
[419746157,1775352644721,-150.0,0.00014874,2]
[419746158,1775352644730,-150.0,0.0001488,2]
[419746159,1775352644740,-150.0,0.0001488,2]
[419746160,1775352644750,-150.0,0.0001488,2]
[419746161,1775352644759,-1500.0,0.00014882,2]
[419746162,1775352644770,-1500.0,0.00014882,2]
[419746163,1775352644782,-1500.0,0.00014882,2]
[419746164,1775352644791,-501.3800559,0.00014882,2]
[419746165,1775352644801,-1500.0,0.00014882,2]
[419746166,1775352644812,-1500.0,0.00014882,2]
[419746167,1775352644822,-1500.0,0.00014882,2]
[419746168,1775352644831,-150.0,0.00014885,2]
[419746169,1775352644841,-150.0,0.00014886,2]
[419746170,1775352644851,-6971.76991075,0.00014892,2]
[419746171,1775352644861,-160.9357,0.000149,2]
[419746172,1775352644871,-15600.0,0.000149,5]
[419746173,1775352644881,-1200.0,0.000149,5]
[419746174,1775352644890,-150.0,0.00014904,2]
[419746175,1775352644900,-150.0,0.00014905,2]
[419746176,1775352644909,-150.0,0.00014912,2]
[419746177,1775352644919,-150.0,0.00014914,2]
[419746178,1775352644929,-164.76948202,0.00014921,2]
[419746179,1775352644939,-1482.54,0.00014932,2]
[419746180,1775352644949,-150.0,0.00014933,2]
[419746181,1775352644959,-150.0,0.00014933,2]
[419746182,1775352644969,-150.0,0.00014933,2]
[419746183,1775352644979,-150.0,0.00014933,2]
[419746184,1775352644988,-150.0,0.00014943,2]
[419746185,1775352644998,-150.0,0.00014947,2]
[419746186,1775352645008,-150.0,0.0001496,2]
[419746187,1775352645018,-150.0,0.00014963,2]
[419746188,1775352645028,-500.0,0.00014967,2]
[419746189,1775352645037,-500.0,0.00014967,2]
[419746190,1775352645047,-500.0,0.00014967,2]
[419746191,1775352645057,-500.0,0.00014967,2]
[419746192,1775352645067,-500.0,0.00014967,2]
[419746193,1775352645078,-500.0,0.00014967,2]
[419746194,1775352645088,-500.0,0.00014967,2]
[419746195,1775352645099,-500.0,0.00014967,2]
[419746196,1775352645109,-500.0,0.00014967,2]
[419746197,1775352645119,-500.0,0.00014967,2]
[419746198,1775352645129,-564.47,0.00014967,2]
[419746199,1775352645138,-564.47,0.00014967,2]
[419746200,1775352645148,-564.47,0.00014967,2]
[419746201,1775352645157,-564.47,0.00014967,2]
[419746202,1775352645168,-564.47,0.00014967,2]
[419746203,1775352645178,-564.47,0.00014967,2]
[419746204,1775352645188,-564.47,0.00014967,2]
[419746205,1775352645198,-564.47,0.00014967,2]
[419746206,1775352645207,-564.47,0.00014967,2]
[419746207,1775352645218,-564.47,0.00014967,2]
[419746208,1775352645228,-500.0,0.00014967,2]
[419746209,1775352645238,-500.0,0.00014967,2]
[419746210,1775352645247,-500.0,0.00014967,2]
[419746211,1775352645257,-500.0,0.00014967,2]
[419746212,1775352645266,-500.0,0.00014967,2]
[419746213,1775352645276,-500.0,0.00014967,2]
[419746214,1775352645286,-500.0,0.00014967,2]
[419746215,1775352645295,-500.0,0.00014967,2]
[419746216,1775352645305,-500.0,0.00014967,2]
[419746217,1775352645314,-500.0,0.00014967,2]
[419746218,1775352645325,-500.0,0.00014967,2]
[419746219,1775352645335,-500.0,0.00014967,2]
[419746220,1775352645344,-500.0,0.00014967,2]
[419746221,1775352645355,-500.0,0.00014967,2]
[419746222,1775352645364,-500.0,0.00014967,2]
[419746223,1775352645374,-500.0,0.00014967,2]
[419746224,1775352645383,-500.0,0.00014967,2]
[419746225,1775352645392,-500.0,0.00014967,2]
[419746226,1775352645402,-588.43649444,0.00014967,2]
[419746227,1775352645411,-608.7,0.00014967,2]
[419746228,1775352645421,-608.7,0.00014967,2]
[419746229,1775352645430,-608.7,0.00014967,2]
[419746230,1775352645440,-608.7,0.00014967,2]
[419746231,1775352645451,-608.7,0.00014967,2]
[419746232,1775352645460,-608.7,0.00014967,2]
[419746233,1775352645470,-608.7,0.00014967,2]
[419746234,1775352645479,-608.7,0.00014967,2]
[419746235,1775352645489,-608.7,0.00014967,2]
[419746236,1775352645498,-608.7,0.00014967,2]
[419746237,1775352645508,-608.7,0.00014967,2]
[419746238,1775352645517,-150.0,0.00014971,2]
[419746239,1775352645527,-150.0,0.00014976,2]
[419746240,1775352645536,-158.805553,0.00014981,2]
[419746241,1775352645545,-150.0,0.00014982,2]
[419746242,1775352645555,-150.0,0.00014982,2]
[419746243,1775352645564,-500.0,0.00014983,2]
[419746244,1775352645574,-500.0,0.00014983,2]
[419746245,1775352645584,-551.03,0.00014983,2]
[419746246,1775352645593,-734.01,0.00014983,2]
[419746247,1775352645603,-500.0,0.00014983,2]
[419746248,1775352645612,-500.0,0.00014983,2]
[419746249,1775352645622,-500.0,0.00014983,2]
[419746250,1775352645631,-500.0,0.00014983,2]
[419746251,1775352645641,-500.0,0.00014983,2]
[419746252,1775352645650,-500.0,0.00014983,2]
[419746253,1775352645660,-500.0,0.00014983,2]
[419746254,1775352645670,-500.0,0.00014985,2]
[419746255,1775352645679,-500.0,0.00014985,2]
[419746256,1775352645690,-500.0,0.00014985,2]
[419746257,1775352645699,-500.0,0.00014985,2]